fUSD/lending_fUSD_20260121
["ID","MTS","AMOUNT","RATE_DAILY","PERIOD"]
[402997881,1769033435729,-625.01555266,0.00018192,2]
[402997882,1769033435739,-500.0,0.00018192,2]
[402997883,1769033435748,-544.0,0.00018192,2]
[402997884,1769033435758,-469.0,0.00018192,2]
[402997885,1769033435767,-1680.0,0.00018243,2]
[402997886,1769033435776,-500.0,0.00018247,2]
[402997887,1769033435786,-544.0,0.00018247,2]
[402997888,1769033435804,-469.0,0.00018247,2]
[402997889,1769033435814,-1020.17,0.00018247,2]
[402997890,1769033435823,-856.0,0.00018257,2]
[402997891,1769033435834,-856.0,0.00018296,2]
[402997892,1769033435843,-350.0,0.00018302,2]
[402997893,1769033435853,-544.0,0.00018302,2]
[402997894,1769033435863,-469.0,0.00018302,2]
[402997895,1769033435874,-856.0,0.00018325,2]
[402997896,1769033435885,-544.0,0.00018357,2]
[402997897,1769033435895,-469.0,0.00018357,2]
[402997898,1769033435904,-200.0,0.00018362,2]
[402997899,1769033435914,-200.0,0.00018362,2]
[402997900,1769033435923,-200.0,0.00018362,2]
[402997901,1769033435933,-200.0,0.00018362,2]
[402997902,1769033435942,-544.0,0.00018411,2]
[402997903,1769033435952,-469.0,0.00018411,2]
[402997904,1769033435962,-856.0,0.00018442,2]
[402997905,1769033435971,-856.0,0.00018446,2]
[402997906,1769033435981,-999.53,0.00018462,2]
[402997907,1769033435991,-544.0,0.00018466,2]
[402997908,1769033436001,-469.0,0.00018466,2]
[402997909,1769033436013,-856.0,0.00018479,2]
[402997910,1769033436023,-815.66,0.00018503,2]
[402997911,1769033436032,-201.11,0.0001851,2]
[402997912,1769033436043,-544.0,0.00018521,2]
[402997913,1769033436052,-469.0,0.00018521,2]
[402997914,1769033436061,-1020.17,0.00018521,2]
[402997915,1769033436070,-200.0,0.00018545,2]
[402997916,1769033436081,-200.0,0.00018545,2]
[402997917,1769033436091,-200.0,0.00018545,2]
[402997918,1769033436103,-200.0,0.00018545,2]
[402997919,1769033436113,-618.51,0.00018574,2]
[402997920,1769033436124,-544.0,0.00018576,2]
[402997921,1769033436133,-469.0,0.00018576,2]
[402997922,1769033436142,-866.24,0.00018587,2]
[402997923,1769033436152,-856.0,0.0001862,2]
[402997924,1769033436161,-544.0,0.00018631,2]
[402997925,1769033436170,-469.0,0.00018631,2]
[402997926,1769033436179,-469.0,0.00018685,2]
[402997927,1769033436189,-544.0,0.00018685,2]
[402997928,1769033436198,-1000.0,0.00018702,2]
[402997929,1769033436207,-856.0,0.00018714,2]
[402997930,1769033436217,-200.0,0.00018731,2]
[402997931,1769033436226,-200.0,0.00018731,2]
[402997932,1769033436235,-200.0,0.00018731,2]
[402997933,1769033436244,-200.0,0.00018731,2]
[402997934,1769033436253,-469.0,0.0001874,2]
[402997935,1769033436262,-544.0,0.0001874,2]
[402997936,1769033436271,-856.0,0.00018749,2]
[402997937,1769033436280,-469.0,0.00018795,2]
[402997938,1769033436289,-544.0,0.00018795,2]
[402997939,1769033436298,-1020.17,0.00018795,2]
[402997940,1769033436308,-455.0,0.00018795,2]
[402997941,1769033436317,-151.28,0.000188,2]
[402997942,1769033436327,-469.0,0.0001885,2]
[402997943,1769033436335,-544.0,0.0001885,2]
[402997944,1769033436344,-856.0,0.00018862,2]
[402997945,1769033436353,-386.87362499,0.00018868,2]
[402997946,1769033436362,-540.25509229,0.00018868,2]
[402997947,1769033436372,-856.0,0.00018885,2]
[402997948,1769033436381,-469.0,0.00018904,2]
[402997949,1769033436390,-544.0,0.00018904,2]
[402997950,1769033436399,-856.0,0.00018937,2]
[402997951,1769033436408,-856.0,0.00018944,2]
[402997952,1769033436418,-473.78886814,0.00018959,2]
[402997953,1769033436427,-561.76051622,0.00018959,2]
[402997954,1769033436436,-300.0,0.00019,2]
[402997955,1769033436446,-1020.17,0.00019069,2]
[402997956,1769033436458,-169.63,0.00019122,2]
[402997957,1769033436467,-856.0,0.00019171,2]
[402997958,1769033436477,-500.0,0.00019178,2]
[402997959,1769033436486,-20118.33,0.00019178,2]
[402997960,1769033436495,-215.96,0.00019178,30]
[402997961,1769033436504,-856.0,0.00019188,2]
[402997962,1769033436514,-618.51,0.000192,2]
[402997963,1769033436523,-500.0,0.00019233,2]
[402997964,1769033436532,-856.0,0.00019259,2]
[402997965,1769033436542,-500.0,0.00019288,2]
[402997966,1769033436551,-999.53,0.00019301,2]
[402997967,1769033436561,-856.0,0.00019308,2]
[402997968,1769033436570,-856.0,0.00019327,2]
[402997969,1769033436579,-154.78966408,0.00019342,2]
[402997970,1769033436588,-1020.17,0.00019343,2]
[402997971,1769033436597,-298.92102999,0.00019343,2]
[402997972,1769033436607,-856.0,0.00019387,2]
[402997973,1769033436616,-856.0,0.00019437,2]
[402997974,1769033436625,-201.11,0.00019538,2]
[402997975,1769033436634,-531.0,0.000196,2]
[402997976,1769033436643,-856.0,0.00019604,2]
[402997977,1769033436653,-1020.17,0.00019617,2]
[402997978,1769033436662,-856.0,0.00019641,2]
[402997979,1769033436671,-856.0,0.00019655,2]
[402997980,1769033436682,-856.0,0.00019682,2]
[402997981,1769033436691,-856.0,0.00019705,2]
[402997982,1769033436700,-155.0,0.00019799,2]
[402997983,1769033436709,-500.0,0.00019799,10]
[402997984,1769033436718,-500.0,0.00019799,10]
[402997985,1769033436727,-587.0,0.00019834,2]
[402997986,1769033436736,-694.631145,0.0001987,2]
[402997987,1769033436745,-1000.0,0.0001987,2]
[402997988,1769033436754,-1020.17,0.00019891,2]
[402997989,1769033436763,-177.23835,0.00019897,2]
[402997990,1769033436772,-425.47139431,0.00019899,2]
[402997991,1769033436781,-120061.71999357,0.000199,2]
[402997992,1769033436790,-3587.73445889,0.000199,2]
[402997993,1769033436800,-1100.0,0.000199,7]
[402997994,1769033436809,-2351.0,0.00020032,2]
[402997995,1769033436818,-169.63,0.0002007,2]
[402997996,1769033436827,-999.53,0.0002014,2]
[402997997,1769033436835,-1020.17,0.00020165,2]
[402997998,1769033436844,-227.66,0.0002022,14]
[402997999,1769033436853,-187.43,0.00020412,2]
[402998000,1769033436862,-1020.17,0.00020439,2]
[402998001,1769033436872,-150.0,0.000205,7]
[402998002,1769033436881,-815.66,0.00020558,2]
[402998003,1769033436890,-201.11,0.00020567,2]
[402998004,1769033436900,-6476.74094804,0.0002071,2]
[402998005,1769033436909,-5530.99291519,0.00020711,2]
[402998006,1769033436918,-1020.17276109,0.00020713,2]
[402998007,1769033436926,-1000.0,0.0002078,2]
[402998008,1769033436936,-158.37327714,0.00020832,2]
[402998009,1769033436947,-9999.99,0.00020951,2]
[402998010,1769033436957,-150.99,0.00020951,2]
[402998011,1769033436966,-299.99,0.00020951,7]
[402998012,1769033436976,-350.0,0.00021,2]
[402998013,1769033436985,-5755.4441764,0.00021286,2]
[402998014,1769033436995,-409.52,0.00021453,2]
[402998015,1769033437010,-201.11,0.00021595,2]
[402998016,1769033437019,-155.0,0.00021599,2]
[402998017,1769033437028,-823.0,0.00021672,2]
[402998018,1769033437038,-1000.0,0.00021917,30]
[402998019,1769033437048,-5000.0,0.00021918,2]
[402998020,1769033437060,-35291.4806072,0.00021929,2]
[402998021,1769033437069,-800.094434,0.00021931,2]
[402998022,1769033437079,-3292.0,0.00021998,2]
[402998023,1769033437089,-177.0,0.00022,5]
[402998024,1769033437098,-1284.2131808,0.00022021,2]
[402998025,1769033437108,-218.29456194,0.0002212,2]
[402998026,1769033437117,-3690.92377375,0.000223,2]
[402998039,1769033441178,-500.0,0.00017699,2]
[402998040,1769033441188,-150.0,0.00017699,2]
[402998041,1769033441197,-603.0,0.00017699,2]
[402998042,1769033441206,-500.0,0.00017754,2]
[402998043,1769033441215,-150.0,0.00017754,2]
[402998044,1769033441224,-603.0,0.00017754,2]
[402998045,1769033441233,-500.0,0.00017809,2]
[402998046,1769033441244,-31.0,0.00017809,2]
[402998047,1769033441464,-119.0,0.00017809,2]
[402998048,1769033441473,-603.0,0.00017809,2]
[402998049,1769033441483,-220.2,0.00017863,2]
[402998050,1769033441494,-279.8,0.00017863,2]
[402998051,1769033441503,-128.56251769,0.00017863,2]
[402998052,1769033441689,-474.43748231,0.00017863,2]
[402998053,1769033441698,-500.0,0.00017918,2]
[402998054,1769033441707,-603.0,0.00017918,2]
[402998055,1769033441716,-500.0,0.00017973,2]
[402998056,1769033441725,-476.54858183,0.00017973,2]
[402998057,1769033442111,-126.45141817,0.00017973,2]
[402998058,1769033442121,-500.0,0.00017999,2]
[402998059,1769033442130,-206.5350797,0.00017999,2]
[402998060,1769033442139,-77.11350213,0.00018028,2]
[402998061,1769033442150,-422.88649787,0.00018028,2]
[402998062,1769033442160,-603.0,0.00018028,2]
[402998063,1769033442169,-421.66413041,0.00018083,2]
[402998064,1769033442178,-603.0,0.00018083,2]
[402998065,1769033442195,-603.0,0.00018137,2]
[402998066,1769033442205,-603.0,0.00018192,2]
[402998067,1769033442215,-603.0,0.00018247,2]
[402998068,1769033442224,-603.0,0.00018302,2]
[402998069,1769033442234,-603.0,0.00018357,2]
[402998070,1769033442244,-603.0,0.00018411,2]
[402998071,1769033442254,-603.0,0.00018466,2]
[402998072,1769033442265,-603.0,0.00018521,2]
[402998073,1769033442275,-603.0,0.00018576,2]
[402998074,1769033442283,-603.0,0.00018631,2]
[402998075,1769033442293,-603.0,0.00018685,2]
[402998076,1769033442304,-603.0,0.0001874,2]
[402998077,1769033442314,-603.0,0.00018795,2]
[402998078,1769033442323,-151.0,0.000223,2]
[402998079,1769033442334,-815.66,0.00022614,2]
[402998080,1769033442343,-201.11,0.00022623,2]
[402998081,1769033442352,-252.26,0.00022654,2]
[402998082,1769033442361,-7874.5937197,0.00022806,2]
[402998083,1769033442370,-178.5251991,0.00022808,2]
[402998084,1769033442379,-1000.0,0.00022858,2]
[402998085,1769033442388,-162.9208734,0.0002286,2]
[402998086,1769033442398,-715.18,0.000231,7]
[402998087,1769033442407,-5533.0,0.000232,3]
[402998088,1769033442416,-3343.46664413,0.00023514,2]
[402998089,1769033442426,-6476.74094804,0.0002352,2]
[402998090,1769033442435,-5530.99291519,0.00023521,2]
[402998091,1769033442444,-201.11,0.00023652,2]
[402998092,1769033442453,-1152.0,0.0002368,2]
[402998093,1769033442462,-5533.0,0.00024,5]
[402998094,1769033442471,-4609.0,0.00024156,2]
[402998095,1769033442481,-215.96,0.00024225,30]
[402998096,1769033442490,-190.93,0.00024397,2]
[402998097,1769033442499,-260.36,0.00024595,14]
[402998098,1769033442508,-338.72684433,0.0002463,2]
[402998099,1769033442517,-216.19,0.00024658,2]
[402998100,1769033442526,-1000.0,0.00024658,2]
[402998101,1769033442535,-150.0,0.00024658,2]
[402998102,1769033442544,-815.66,0.0002467,120]
[402998103,1769033442553,-150.0,0.0002468,2]
[402998104,1769033442563,-201.11,0.0002468,2]
[402998105,1769033442573,-220824.354419,0.000248,3]
[402998106,1769033442582,-20676.3444036,0.000249,3]
[402998107,1769033442592,-188.10570727,0.000249,7]
[402998108,1769033442602,-1000.0,0.00024936,2]
[402998109,1769033442611,-155.0,0.00025199,2]
[402998110,1769033442620,-49424.3537644,0.0002539,2]
[402998111,1769033442630,-12538.38,0.00025558,2]
[402998112,1769033442639,-201.11,0.00025708,2]
[402998113,1769033442648,-1613.0,0.00025874,2]
[402998114,1769033442657,-599.62014555,0.0002599,2]
[402998115,1769033442666,-4513.20308318,0.00026,2]
[402998116,1769033442675,-866.24,0.00026022,2]
[402998117,1769033442684,-6476.74094804,0.0002633,2]
[402998118,1769033442693,-5530.99291519,0.00026332,2]
[402998119,1769033442703,-218.29456194,0.00026339,2]
[402998120,1769033442712,-3795.0,0.00026525,2]
[402998121,1769033442721,-252.26,0.00026606,2]
[402998122,1769033442730,-201.11,0.00026737,2]
[402998123,1769033442739,-150.0,0.00027369,2]
[402998124,1769033442748,-451.63579244,0.0002737,30]
[402998125,1769033442757,-167.37,0.00027397,120]
[402998126,1769033442765,-216.19,0.00027397,2]
[402998127,1769033442774,-500.0,0.00027397,20]
[402998128,1769033442783,-167.37,0.00027452,120]
[402998129,1769033442792,-723.778,0.00027601,120]
[402998130,1769033442801,-201.11,0.00027765,2]
[402998131,1769033442811,-2000.0,0.000279,2]
[402998132,1769033442819,-470.40657766,0.00027953,3]
[402998133,1769033442829,-1081.6112474,0.00027953,3]
[402998134,1769033442838,-531.0,0.00028229,10]
[402998135,1769033442847,-2258.0,0.00028271,2]
[402998136,1769033442857,-28828.0,0.00028576,2]
[402998137,1769033442866,-154.33,0.00028767,120]
[402998138,1769033442875,-167.37,0.00028767,120]
[402998139,1769033442884,-533.88981491,0.00029124,2]
[402998140,1769033442893,-151.0,0.00029124,2]
[402998141,1769033442903,-151.0,0.00029124,2]
[402998142,1769033442911,-151.0,0.00029124,2]
[402998143,1769033442920,-151.0,0.00029124,2]
[402998144,1769033442929,-151.0,0.00029124,2]
[402998145,1769033442938,-151.0,0.00029124,2]
[402998146,1769033442947,-500.0,0.00029124,2]
[402998147,1769033442957,-151.0,0.00029124,2]
[402998148,1769033442965,-151.0,0.00029124,2]
[402998149,1769033442974,-151.0,0.00029124,2]
[402998150,1769033442983,-151.03706934,0.00029124,2]
[402998151,1769033442992,-151.0,0.00029124,2]
[402998152,1769033443003,-151.0,0.00029124,2]
[402998153,1769033443012,-151.0,0.00029124,2]
[402998154,1769033443021,-151.0,0.00029124,2]
[402998155,1769033443030,-151.0,0.00029124,2]
[402998156,1769033443039,-6476.74094804,0.0002914,2]
[402998157,1769033443049,-5530.99291519,0.00029142,2]
[402998158,1769033443058,-1206.32453958,0.00029172,2]
[402998159,1769033443068,-215.96,0.00029272,30]
[402998160,1769033443078,-438.05,0.000293,14]
[402998161,1769033443087,-553.64373807,0.00029672,2]
[402998162,1769033443095,-216.19,0.00030137,2]
[402998163,1769033443105,-574.12855637,0.0003022,2]
[402998164,1769033443114,-218.29456194,0.00030559,2]
[402998165,1769033443124,-715.18,0.000306,7]
[402998166,1769033443133,-595.37131296,0.00030768,2]
[402998167,1769033443142,-2293.0,0.0003089,2]
[402998168,1769033443151,-158.37327714,0.00031248,2]
[402998169,1769033443161,-617.40005154,0.00031316,2]
[402998170,1769033443170,-2000.0,0.000316,2]
[402998171,1769033443179,-640.24385345,0.00031864,2]
[402998172,1769033443188,-6476.74094804,0.00031951,2]
[402998173,1769033443198,-5530.99291519,0.00031953,2]
[402998174,1769033443207,-210.22,0.00031965,2]
[402998175,1769033443216,-1206.32453958,0.00031977,2]
[402998176,1769033443225,-155.0,0.00032398,2]
[402998177,1769033443234,-663.93287602,0.00032412,2]
[402998178,1769033443244,-1407.0,0.0003259,2]
[402998179,1769033443253,-3474.0,0.0003259,2]
[402998180,1769033443262,-489.637,0.0003259,2]
[402998181,1769033443272,-6084.627,0.0003259,2]
[402998182,1769033443280,-566.0,0.0003259,2]
[402998183,1769033443289,-500.0,0.00032603,2]
[402998184,1769033443298,-216.19,0.00032877,2]
[402998185,1769033443307,-500.0,0.00032877,7]
[402998186,1769033443316,-500.0,0.00032877,7]
[402998187,1769033443325,-500.0,0.00032877,7]
[402998188,1769033443334,-500.0,0.00032877,7]
[402998189,1769033443343,-500.0,0.00032877,7]
[402998190,1769033443352,-201.94511964,0.00032877,7]
[402998191,1769033443361,-235.07,0.000329,14]
[402998192,1769033443370,-819.34849996,0.0003296,2]
[402998193,1769033443540,-210.22,0.00033371,2]
[402998194,1769033443550,-185.56,0.000334,14]
[402998195,1769033443559,-2000.0,0.000342,7]
[402998196,1769033443569,-215.96,0.00034319,30]
[402998197,1769033443578,-7721.3212,0.00034414,2]
[402998198,1769033443587,-6476.74094804,0.00034761,2]
[402998199,1769033443596,-5530.99291519,0.00034763,2]
[402998200,1769033443606,-10269.0,0.00034777,5]
[402998201,1769033443615,-218.29456194,0.00034778,2]
[402998202,1769033443624,-1206.32453958,0.00034781,2]
[402998203,1769033443633,-2000.0,0.000353,2]
[402998204,1769033443642,-3647.136,0.00035499,42]
[402998205,1769033443651,-414.486,0.00035499,42]
[402998206,1769033443660,-2000.0,0.000355,7]
[402998207,1769033443669,-338.72684433,0.00035589,120]
[402998208,1769033443678,-208.2218765,0.00035589,30]
[402998209,1769033443687,-1903.88,0.0003559,2]
[402998210,1769033443696,-566.0,0.0003559,2]
[402998211,1769033443705,-216.19,0.00035616,2]
[402998212,1769033443714,-500.0,0.0003597,2]
[402998213,1769033443723,-787.31776037,0.0003597,2]
[402998214,1769033443765,-212.68223963,0.0003597,2]
[402998215,1769033443774,-160.88960467,0.00035997,14]
[402998216,1769033443785,-16.34874533,0.00035997,14]
[402998217,1769033443794,-242.02130721,0.00036,2]
[402998218,1769033443804,-841.0,0.00036,2]
[402998219,1769033443816,-3436.85276673,0.00036,2]
[402998220,1769033443948,-640.58000002,0.00036,2]
[402998235,1769033445736,-151.0,0.0001741,2]
[402998236,1769033445745,-603.0,0.0001885,2]
[402998237,1769033445754,-603.0,0.00018904,2]
[402998239,1769033445764,-915.0,0.0003283,2]
[402998240,1769033445773,-499.74062365,0.00036,2]
[402998242,1769033445783,-7793.87218745,0.00036,2]
[402998244,1769033445792,-1607.61794903,0.000368,2]
[402998246,1769033445801,-715.18,0.000368,14]
[402998247,1769033445811,-1951.25189202,0.000368,2]
[402998248,1769033445820,-531.0,0.00036857,18]
[402998249,1769033445830,-14100.1730582,0.0003691,2]
[402998250,1769033445840,-255.0,0.00036965,30]
[402998251,1769033445850,-165.35323052,0.00037,2]
[402998252,1769033445859,-365.04,0.000372,30]
[402998253,1769033445868,-92.78743445,0.00037339,2]
[402998254,1769033445885,-400.0,0.00037339,2]
[402998255,1769033445918,-500.0,0.00037339,2]
[402998257,1769033446442,-624.54460501,0.00018959,2]
[402998259,1769033446451,-151.0,0.000368,2]
[402998261,1769033446461,-151.0,0.000368,2]
[402998263,1769033446470,-11545.59256555,0.00037339,2]
[402998265,1769033446480,-7063.11103354,0.0003739,2]
[402998267,1769033446489,-279.1587959,0.00037571,2]
[402998273,1769033446604,-151.0,0.000368,2]
[402998274,1769033446613,-157.07435215,0.00037571,2]
[402998275,1769033464783,300.0,0.0001969,120]
[402998276,1769033465940,5000.0,0.0001969,120]
[402998281,1769034498925,9391.56,0.00014172,2]
[402998282,1769034512194,10000.01,0.00016,4]
[402998283,1769034512216,2369.07508163,0.00016,4]
[402998295,1769034632147,-5000.77304202,0.000162,5]
[402998296,1769034632156,-862.0,0.00016438,2]
[402998297,1769034632166,-360.19857892,0.000166,2]
[402998298,1769034632175,-166.34,0.00016712,2]
[402998304,1769034632187,-3775.686856,0.00017085,2]
[402998305,1769034632524,-151.0,0.00017171,2]
[402998306,1769034632544,-151.0,0.00017183,2]
[402998307,1769034632553,-300.0,0.00017312,2]
[402998308,1769034632563,-1200.0,0.00017312,2]
[402998309,1769034632573,-300.0,0.00017312,2]
[402998310,1769034632582,-300.0,0.00017312,2]
[402998311,1769034632591,-400.0,0.000174,6]
[402998312,1769034632601,-9570.61690741,0.000175,2]
[402998313,1769034632612,-1326.12540726,0.000175,3]
[402998314,1769034632625,-452.14385658,0.000175,3]
[402998315,1769034632634,-800.0,0.000175,6]
[402998316,1769034632643,-202.99,0.00017588,2]
[402998317,1769034632653,-329.77583328,0.000176,6]
[402998318,1769034632691,-870.22416672,0.000176,6]
[402998319,1769034632700,-287.0,0.0001766,2]
[402998320,1769034632709,-1047.1961432,0.000177,6]
[402998321,1769034632757,-652.8038568,0.000177,6]
[402998322,1769034632767,-242.0,0.00017723,2]
[402998323,1769034632777,-366.6816772,0.00017759,2]
[402998324,1769034632786,-250.0,0.00017789,2]
[402998325,1769034632795,-1349.134466,0.000178,6]
[402998326,1769034638252,-750.865534,0.000178,6]
[402998327,1769034638263,-250.0,0.0001782,2]
[402998328,1769034638272,-1000.17631861,0.0001786,2]
[402998329,1769034638281,-203.0,0.00017862,2]
[402998330,1769034638290,-244.7971,0.00017882,2]
[402998331,1769034638301,-1000.0,0.000179,2]
[402998332,1769034638311,-308.732684,0.000179,6]
[402998333,1769034638323,-91.267316,0.000179,6]
[402998334,1769034638333,-150.0,0.00017973,2]
[402998335,1769034638342,-550.0,0.00017981,2]
[402998336,1769034638351,-362.76853908,0.00017982,2]
[402998337,1769034638363,-2219.47713409,0.00017982,2]
[402998339,1769034638374,-781.96047157,0.00017982,2]
[402998341,1769034638385,-1201.70397425,0.00017982,2]
[402998354,1769034640242,-40432.89259,0.00017982,2]
[402998355,1769034640252,-4375.48697097,0.00017982,2]
[402998356,1769034640263,-151.0,0.00017989,2]
[402998357,1769034640272,-151.0,0.00017989,2]
[402998358,1769034640281,-151.0,0.00017989,2]
[402998359,1769034640291,-151.0,0.00017989,2]
[402998360,1769034640302,-151.0,0.00017989,2]
[402998361,1769034640311,-151.0,0.00017989,2]
[402998362,1769034640321,-151.0,0.00017989,2]
[402998363,1769034640331,-151.0,0.00017989,2]
[402998364,1769034640340,-151.0,0.00017989,2]
[402998365,1769034640349,-151.0,0.00017989,2]
[402998366,1769034640358,-151.0,0.00017989,2]
[402998367,1769034640368,-153.95898557,0.0001799,2]
[402998368,1769034640376,-1046.91,0.0001799,2]
[402998369,1769034640386,-1046.91,0.0001799,2]
[402998370,1769034640395,-500.0,0.00017999,2]
[402998371,1769034640404,-500.0,0.00017999,2]
[402998372,1769034640413,-392.91974326,0.00017999,2]
[402998373,1769034640422,-11836.50726652,0.00017999,2]
[402998374,1769034640431,-300.0,0.00017999,2]
[402998375,1769034640440,-300.0,0.00017999,2]
[402998376,1769034640449,-299.2286621,0.00017999,2]
[402998377,1769034640458,-174.04894204,0.00017999,2]
[402998378,1769034640467,-564.0524644,0.00017999,2]
[402998379,1769034640476,-500.0,0.00017999,2]
[402998380,1769034640485,-500.0,0.00017999,2]
[402998381,1769034640494,-500.0,0.00017999,2]
[402998382,1769034640503,-500.0,0.00017999,2]
[402998383,1769034640512,-464.20123057,0.00017999,2]
[402998384,1769034640521,-500.0,0.00017999,2]
[402998385,1769034640530,-281.31969488,0.00017999,2]
[402998386,1769034640539,-500.0,0.00017999,2]
[402998387,1769034640548,-500.0,0.00017999,2]
[402998388,1769034640557,-627.28846239,0.00017999,2]
[402998389,1769034640566,-500.0,0.00017999,2]
[402998390,1769034640576,-463.44627253,0.00017999,2]
[402998391,1769034640585,-500.0,0.00017999,2]
[402998392,1769034640594,-500.0,0.00017999,2]
[402998393,1769034640603,-500.0,0.00017999,2]
[402998394,1769034640612,-500.0,0.00017999,2]
[402998395,1769034640621,-500.0,0.00017999,2]
[402998396,1769034640630,-500.0,0.00017999,2]
[402998397,1769034640640,-500.0,0.00017999,2]
[402998398,1769034640649,-166.00528884,0.00017999,2]
[402998399,1769034640658,-500.0,0.00017999,2]
[402998400,1769034640667,-500.0,0.00017999,2]
[402998401,1769034640676,-635.66304979,0.00017999,2]
[402998402,1769034640685,-500.0,0.00017999,2]
[402998403,1769034640695,-500.0,0.00017999,2]
[402998404,1769034640703,-500.0,0.00017999,2]
[402998405,1769034640713,-500.0,0.00017999,2]
[402998406,1769034640722,-200.0,0.00017999,2]
[402998407,1769034640731,-500.0,0.00017999,2]
[402998408,1769034640740,-500.0,0.00017999,2]
[402998409,1769034640750,-500.0,0.00017999,2]
[402998410,1769034640759,-500.0,0.00017999,2]
[402998411,1769034640769,-500.0,0.00017999,2]
[402998412,1769034640778,-500.0,0.00017999,2]
[402998413,1769034640787,-500.0,0.00017999,2]
[402998414,1769034640797,-337.21220376,0.00017999,2]
[402998415,1769034640806,-500.0,0.00017999,2]
[402998416,1769034640816,-500.0,0.00017999,2]
[402998417,1769034640825,-500.0,0.00017999,2]
[402998418,1769034640834,-500.0,0.00017999,2]
[402998419,1769034640844,-500.0,0.00017999,2]
[402998420,1769034640854,-1000.0,0.00018,2]
[402998421,1769034640863,-1000.0,0.00018,2]
[402998422,1769034640873,-1000.0,0.00018,2]
[402998423,1769034640882,-995.287,0.00018,2]
[402998424,1769034640891,-2000.0,0.00018,2]
[402998425,1769034640900,-2000.0,0.00018,2]
[402998426,1769034640909,-2000.0,0.00018,2]
[402998427,1769034640918,-723.778,0.00018,2]
[402998428,1769034640928,-6927268.49585604,0.00018,2]
[402998429,1769034640937,-350.0,0.00018,2]
[402998430,1769034640946,-350.0,0.00018,2]
[402998431,1769034640955,-350.0,0.00018,2]
[402998432,1769034640965,-350.0,0.00018,2]
[402998433,1769034640974,-350.0,0.00018,2]
[402998434,1769034640983,-350.0,0.00018,2]
[402998435,1769034640993,-350.0,0.00018,2]
[402998436,1769034641003,-350.0,0.00018,2]
[402998437,1769034641012,-350.0,0.00018,2]
[402998438,1769034641021,-350.0,0.00018,2]
[402998439,1769034641030,-229.46038718,0.00018485,2]
[402998440,1769034641040,-1429.85954098,0.00018585,2]
[402998441,1769034641050,-150.00937743,0.00018685,4]
[402998442,1769034641059,-168.0,0.00018779,2]
[402998443,1769034641068,-420.0,0.00018902,2]
[402998444,1769034641078,-420.0,0.00018902,2]
[402998445,1769034641087,-287.28,0.00018907,2]
[402998446,1769034641096,-1680.0,0.00018996,2]
[402998447,1769034641106,-300.0,0.0001906,2]
[402998448,1769034641116,-3000.0,0.00019178,2]
[402998449,1769034641126,-500.0,0.00019178,2]
[402998450,1769034641135,-250.45418616,0.00019178,2]
[402998451,1769034641143,-500.0,0.00019178,2]
[402998452,1769034641153,-500.0,0.00019178,2]
[402998453,1769034641162,-500.0,0.00019178,2]
[402998454,1769034641171,-500.0,0.00019178,2]
[402998455,1769034641181,-500.0,0.00019178,2]